Cogmind - Beta 12 @@@ ROGUE MODE // 2023.11.24 @ 16:14:16 Player: Mozco Result: Self-destructed Performance ------------- Evolutions (5) 2500 Regions Visited (11) 2200 Robots Destroyed (100) 500 Value Destroyed (3987) 3987 Prototype IDs (2) 40 Alien Tech Used (0) 0 Bonus (771) 771 TOTAL SCORE: 9998 Bonus ------- High Alert Combat Kills 92 Follower Combat Kills 635 Entered Garrisons 200 Used RIF Installer 500 Entered DSFs 500 Aligned with FarCom 300 Friendly Fire -1456 Cogmind --------- Core Integrity 320/1000 Matter 249/300 Energy 150/150 System Corruption 27% Temperature Cool (0) Movement Walking (190) Ox1 Location -5/Garrison Parts ------- > --- POWER (2) -------- Micro Nuclear Core > --- PROPULSION (3) --- Aluminum Leg > --- UTILITY (9) ------ Advanced Cooling System Advanced Coolant Injector Advanced Visual Processing Unit Advanced Targeting Computer > --- WEAPON (3) ------- Axe > --- INVENTORY (5) ---- Advanced Cooling System Advanced Target Analyzer Improved Focal Shield Relay Coupler [NC] (31) Relay Coupler [Heavy] (12) Peak State ------------ > --- POWER ------------ Neutrino Core Antimatter Reactor > --- PROPULSION ------- Advanced VSS Leg Advanced VSS Leg Advanced VSS Leg > --- UTILITY ---------- Advanced Cooling System Lightpack 2.0 Advanced Visual Processing Unit Advanced Targeting Computer Weapon Shielding Hardened Heavy Armor Plating > --- WEAPON ----------- Gatling Laser Gatling Laser Axe > --- INVENTORY -------- Fusion Compressor Carbon-fiber Leg Carbon-fiber Leg Carbon-fiber Leg Advanced Cooling System Advanced Coolant Injector Advanced Terrain Scan Processor Advanced Targeting Computer Advanced Target Analyzer Advanced Target Analyzer Advanced Particle Charger Weapon Shielding Weapon Shielding Weapon Shielding Improved Focal Shield Shock Absorption System Relay Coupler [NC] Relay Coupler [Grunt] Relay Coupler [Sentry] Axe [Rating: 103] Favorites ----------- Power Ion Engine Engine Ion Engine Power Core Micro Nuclear Core Reactor Antimatter Reactor Propulsion Aluminum Leg Treads Medium Treads Leg Aluminum Leg Wheel Compact Wheel Utility Lightpack 2.0 Device Improved Terrain Scanner Storage Lightpack 2.0 Processor Improved Targeting Computer Protection Weapon Shielding Weapon Light Cannon Energy Gun Small Laser Energy Cannon Improved EM Pulse Cannon Ballistic Gun Light Assault Rifle Ballistic Cannon Light Cannon Launcher Rocket Launcher Special Weapon Mining Laser Slashing Weapon Axe Build | -11 -10 -10 -10 -9 -8 -7 -7 -7 -5 -5 -5 ------- Run | Jun Mat Min Exi Min Mat Fac Sto Rec Fac DSF Gar Slots Evolved 10 | . . . . . 4 2 . . 4 . . Power 1 | . . . . . . . . . 1 . . Propulsion 1 | . . . . . 1 . . . . . . Utility 7 | . . . . . 3 2 . . 2 . . Weapon 1 | . . . . . . . . . 1 . . Parts Attached 147 | 7 13 4 1 5 9 16 23 16 3 2 48 Power 18 | 1 2 1 . . 1 2 1 2 . 2 6 Engine 11 | 1 2 1 . . 1 1 1 2 . 2 . Core 6 | . . . . . . 1 . . . . 5 Reactor 1 | . . . . . . . . . . . 1 Propulsion 48 | 2 4 1 . 2 3 4 8 6 . . 18 Treads 13 | . . . . 2 3 2 . . . . 6 Leg 23 | . 2 1 . . . 2 4 2 . . 12 Wheel 12 | 2 2 . . . . . 4 4 . . . Hover . | . . . . . . . . . . . . Flight . | . . . . . . . . . . . . Utility 35 | 2 2 . . 1 2 3 3 5 2 . 15 Device 10 | 1 . . . . . 1 . 1 1 . 6 Storage 3 | 1 1 . . . 1 . . . . . . Processor 8 | . 1 . . . 1 1 1 3 . . 1 Hackware . | . . . . . . . . . . . . Protection 14 | . . . . 1 . 1 2 1 1 . 8 Artifact . | . . . . . . . . . . . . Weapon 46 | 2 5 2 1 2 3 7 11 3 1 . 9 Energy Gun 11 | 1 1 . . . . 1 . 2 . . 6 Energy Cannon 7 | . . . . 1 1 1 4 . . . . Ballistic Gun 4 | 1 . . . . . . 3 . . . . Ballistic Cannon 6 | . 1 . 1 1 1 1 . . 1 . . Launcher 12 | . 1 2 . . 1 4 4 . . . . Special Weapon 2 | . 2 . . . . . . . . . . Impact Weapon . | . . . . . . . . . . . . Slashing Weapon 4 | . . . . . . . . 1 . . 3 Piercing Weapon . | . . . . . . . . . . . . Special Melee Weapon . | . . . . . . . . . . . . Unidentified Prototypes 2 | . . . . . 1 . . 1 . . . Corrupted Parts 10 | . . . . . . 2 1 2 . . 5 System Corruption 54 | . . . . . . 14 2 18 . . 20 Parts Lost 66 | . 4 . . . 4 10 6 4 . . 38 Power 7 | . . . . . . . . 1 . . 6 Propulsion 23 | . 3 . . . 1 4 2 1 . . 12 Utility 14 | . . . . . 1 1 1 . . . 11 Weapon 22 | . 1 . . . 2 5 3 2 . . 9 Highest Loss Streak 16 | . 3 . . . 4 4 5 1 . . 16 To Critical Strikes 1 | . . . . . . . 1 . . . . Average Slot Usage (%) 84 | . 96 100 100 100 70 70 77 71 74 79 74 Engine 9 | . 14 14 14 14 9 3 6 4 5 8 4 Treads 4 | . . . . 12 19 19 . . . . 4 Leg 11 | . 14 28 28 15 . 2 11 . 5 5 9 Wheel 5 | . 12 . . . . . 7 17 5 5 . Device 3 | . 10 . . . . 3 . . 5 5 6 Storage 9 | . 14 14 14 14 9 7 7 7 5 5 5 Processor 13 | . 3 14 14 7 8 15 22 23 17 17 14 Protection 4 | . . . . 6 6 2 7 7 10 11 6 Energy Gun 3 | . 10 . . . . 1 . 4 5 5 5 Energy Cannon 1 | . . . . . 2 5 6 . . . . Ballistic Gun 1 | . 6 . . . . . 1 2 . . . Ballistic Cannon 6 | . 4 14 14 20 12 2 . . 4 5 1 Launcher 4 | . 2 14 14 7 2 1 4 . . . . Slashing Weapon 1 | . . . . . . . . 2 5 5 5 Naked Turns . | . . . . . . . . . . . . Heaviest Build 65 | 13 30 32 32 36 22 27 33 23 35 48 65 Greatest Support 84 | 20 26 20 20 40 84 84 32 48 28 28 79 Greatest Overweight (x) 10 | 3 8 1 1 1 . 2 10 1 1 1 4 Average Overweight (x) . | . . 1 1 . . . . . 1 1 . Largest Inventory Capacity 40 | 8 15 15 15 15 40 40 40 40 40 40 40 Average Capacity 28 | 7 14 15 15 15 40 40 40 40 40 40 39 Most Carried 30 | 6 15 15 15 15 16 17 27 27 23 28 30 Average Carried 17 | 4 11 15 14 14 12 14 21 24 21 24 21 Final Capacity 40 | 8 15 15 15 15 40 40 40 40 40 40 5 Final Carried 26 | 6 15 15 15 14 16 14 26 24 22 26 5 Class Distribution -------------------- 46% | Hauler-Mutant 43% | Mutant 8% | Commander-Mutant Dominant Class ---------------- Mutant | -10/Materials Mutant | -10/Mines Mutant | -10/Exiles Mutant | -9/Mines Hauler-Mutant | -8/Materials Hauler-Mutant | -7/Factory Hauler-Mutant | -7/Storage Hauler-Mutant | -7/Recycling Commander-Mutant | -5/Factory Commander-Mutant | -5/DSF Hauler-Mutant | -5/Garrison Resources | -11 -10 -10 -10 -9 -8 -7 -7 -7 -5 -5 -5 ----------- Run | Jun Mat Min Exi Min Mat Fac Sto Rec Fac DSF Gar Matter Collected 2519 | 278 233 146 . 128 25 443 405 238 . 168 455 Remotely . | . . . . . . . . . . . . Salvage Created 3911 | 97 662 161 . 100 97 808 901 500 . 236 349 Parts 182 | 6 38 11 . 7 4 30 50 16 . 6 14 Haulers Intercepted 2 | . 1 . . . . . . . . 1 . Recyclers Shooed 5 | 1 1 . . . . . 3 . . . . Parts Field Recycled . | . . . . . . . . . . . . Retrieved Matter . | . . . . . . . . . . . . Parts Self-Destructed . | . . . . . . . . . . . . Prevented . | . . . . . . . . . . . . Kills | -11 -10 -10 -10 -9 -8 -7 -7 -7 -5 -5 -5 ------- Run | Jun Mat Min Exi Min Mat Fac Sto Rec Fac DSF Gar Combat Hostiles Destroyed 77 | . 16 6 . 3 6 14 14 7 . 3 8 Melee 4 | . . . . . . 1 . 2 . . 1 Guns 23 | . 9 . . . . 2 2 5 . . 5 Cannons 21 | . 2 3 . 1 3 5 3 . . 3 1 AOE 24 | . 5 3 . 2 3 5 6 . . . . Classes Destroyed 17 | 2 4 1 . 1 1 1 2 2 . 2 1 Worker 3 | . . . . 1 . . 2 . . . . Builder 3 | . 2 . . . . 1 . . . . . Tunneler 3 | 1 . 1 . 1 . . . . . . . Hauler 2 | . 1 . . . . . . . . 1 . Recycler 6 | 1 1 1 . . . . 1 2 . . . Mechanic 1 | . . . . . . . 1 . . . . Watcher 3 | . 2 . . . . . 1 . . . . Swarmer 10 | . . 3 . 3 . . 3 1 . . . Grunt 49 | . 16 3 . . 3 13 8 . . 1 5 Brawler 1 | . . . . . . . . 1 . . . Protector 3 | . . . . . . . 1 2 . . . Sentry 6 | . . . . . 3 . 1 2 . . . Demolisher 2 | . . . . . . . . 1 . . 1 Specialist 2 | . . . . . . . . . . 1 1 Hunter 1 | . . . . . . . . . . . 1 Programmer 2 | . . . . . . 1 1 . . . . Heavy 1 | . . . . . . . . . . 1 . Thug 1 | . . . . . . . 1 . . . . Best Kill Streak 12 | 2 12 6 . 3 4 4 8 3 . 2 3 Combat Bots Only 7 | . 7 4 . 3 4 4 6 3 . 1 3 Max Kills in Single Turn 3 | 1 2 2 . 2 1 3 2 1 . 1 1 Gunslinging . | . . . . . . . . . . . . Exploded 2 | . 2 2 . 2 1 2 2 . . . . Melee 1 | . . . . . . 1 . 1 . . 1 Uniques/NPCs Destroyed 1 | . . . . 1 . . . . . . . YI-UF0 (-9/Mines) Combat | -11 -10 -10 -10 -9 -8 -7 -7 -7 -5 -5 -5 -------- Run | Jun Mat Min Exi Min Mat Fac Sto Rec Fac DSF Gar Damage Taken 8985 | . 417 219 . 30 708 1394 996 322 . 87 4812 Core 1326 | . 90 29 . 7 71 188 173 88 . 2 678 Absorbed by Shields 823 | . . . . . . . . 172 . 85 566 Redirected to Shielding 187 | . . . . . . . 4 13 . 20 150 Core Remaining (%) 67 | 100 . . . 49 87 . . 35 . . . Volleys Fired 309 | 8 75 16 . 17 20 45 47 22 . 8 51 Largest 2 | 2 2 2 . 2 2 2 2 2 . 1 2 Hottest 146 | 60 100 68 . 70 91 124 97 78 . 48 146 Shots Fired 401 | 16 100 18 . 30 30 54 49 27 . 8 69 Gun 210 | 16 87 . . . . 16 11 27 . . 53 Cannon 136 | . 2 14 . 28 23 24 21 . . 8 16 Launcher 50 | . 6 4 . 2 7 14 17 . . . . Special 5 | . 5 . . . . . . . . . . Kinetic 185 | 8 57 14 . 28 21 4 11 18 . 8 16 Thermal 85 | 8 37 . . . . . . 2 . . 38 Explosive 19 | . 6 4 . 2 7 . . . . . . Electromagnetic 112 | . . . . . 2 50 38 7 . . 15 Robot Hit Streak 31 | 4 10 3 . 6 13 14 10 12 . 18 31 Robot Miss Streak 4 | 3 3 2 . 2 4 2 3 4 . . 3 Penetration Max . | . . . . . . . . . . . . Secondary Targets . | . . . . . . . . . . . . Shots Hit Robots 296 | 7 69 11 . 18 20 37 31 35 . 8 60 Core Hits 228 | 5 45 9 . 11 12 30 42 37 . 6 31 Critical Kills . | . . . . . . . . . . . . Critical Parts Destroyed . | . . . . . . . . . . . . Critical Strikes 10 | . . . . 2 1 1 1 1 . 1 3 Blast 5 | . . . . 2 1 . . . . 1 1 Corrupt 2 | . . . . . . 1 1 . . . . Sever 3 | . . . . . . . . 1 . . 2 Melee Attacks 33 | . . . . . . . . 9 . . 24 Impact . | . . . . . . . . . . . . Slashing 33 | . . . . . . . . 9 . . 24 Piercing . | . . . . . . . . . . . . Sneak Attacks 2 | . . . . . . . . 1 . . 1 Combat Hostiles 1 | . . . . . . . . 1 . . . Follow-up Attacks 1 | . . . . . . . . . . . 1 Damage Inflicted 9108 | 71 1350 305 . 383 740 1313 2004 1032 . 224 1686 Guns 2598 | 71 546 . . . . 290 261 568 . . 862 Cannons 2115 | . 32 181 . 343 353 357 323 . . 224 302 Explosions 3406 | . 752 117 . 40 387 646 1419 . . . 45 Melee 914 | . . . . . . . . 453 . . 461 Ramming 75 | . 20 7 . . . 20 1 11 . . 16 Kinetic 2450 | 36 325 181 . 343 307 22 261 449 . 224 302 Thermal 1450 | 35 253 12 . . 30 . 323 28 . . 769 Explosive 1254 | . 752 105 . 40 357 . . . . . . Electromagnetic 2965 | . . . . . 46 1271 1419 91 . . 138 Impact . | . . . . . . . . . . . . Slashing 914 | . . . . . . . . 453 . . 461 Piercing . | . . . . . . . . . . . . Highest Corruption 40 | . . . . . . 20 22 40 . . 27 Average Corruption 19 | . . . . . . 10 20 22 . . 21 Corruption Purged . | . . . . . . . . . . . . Corruption Blocked . | . . . . . . . . . . . . Effects 106 | . . . . . . 9 34 40 . . 23 Message Errors 22 | . . . . . . 1 8 8 . . 5 Matter Fused 24 | . . . . . . 1 11 7 . . 5 Heat Flow Errors 3 | . . . . . . 1 . . . . 2 Energy Discharges 16 | . . . . . . 4 3 6 . . 3 Parts Rejected 5 | . . . . . . . 2 2 . . 1 Data Loss (minor) 10 | . . . . . . . 4 4 . . 2 Data Loss (major) 7 | . . . . . . . 3 2 . . 2 Misfires 4 | . . . . . . 1 1 . . . 2 Alerts 2 | . . . . . . 1 . 1 . . . Misdirections 12 | . . . . . . . 1 10 . . 1 Weapon Failures 1 | . . . . . . . 1 . . . . Overload Shots . | . . . . . . . . . . . . Overflow Damage 173 | . . 14 . 11 . . 16 65 . . 67 Projectiles 25 | . . 14 . 11 . . . . . . . Explosions 16 | . . . . . . . 16 . . . . Melee 132 | . . . . . . . . 65 . . 67 Knockbacks 18 | . . 3 . 7 2 2 . . . 1 3 Impact 2 | . . . . . . 1 . . . . 1 Kinetic 16 | . . 3 . 7 2 1 . . . 1 2 Secondary . | . . . . . . . . . . . . Self-Inflicted Damage 297 | . 10 40 . . 111 . 131 5 . . . Shots 14 | . . 1 . . 4 . 9 . . . . Rammed 16 | . 1 . . . . 9 1 1 . . 4 Targets Rammed 18 | . 1 1 . . . 10 1 1 . . 4 Kicked 1 | . . 1 . . . . . . . . . Crushed 1 | . . . . . . 1 . . . . . Highest Temperature 416 | 20 74 36 . 96 117 176 120 28 . . 416 Average Temperature 49 | 15 29 22 . 40 53 62 25 15 . . 100 Received Heat Transfer 2775 | . 243 72 . . 279 666 264 69 . 4 1178 Effects 2 | . . . . . . . . . . . 2 Interference 1 | . . . . . . . . . . . 1 Damage (minor) 1 | . . . . . . . . . . . 1 Siege Activations . | . . . . . . . . . . . . Robots Corrupted 5 | . . . . . . 1 3 . . . 1 Combat Hostiles 5 | . . . . . . 1 3 . . . 1 Parts Fried 12 | . . . . . . 9 2 1 . . . Impact Corruptions . | . . . . . . . . . . . . Robots Melted . | . . . . . . . . . . . . Combat Hostiles . | . . . . . . . . . . . . Parts Melted 4 | . 1 . . . . . . . . . 3 Heat Transferred 2783 | 75 575 50 . . 50 . 400 74 . . 1559 Parts Sabotaged . | . . . . . . . . . . . . Parts Stolen . | . . . . . . . . . . . . Parts Stripped . | . . . . . . . . . . . . Power Chain Reactions 5 | . . . . . . . 4 . . . 1 Missiles Intercepted . | . . . . . . . . . . . . Alert | -11 -10 -10 -10 -9 -8 -7 -7 -7 -5 -5 -5 ------- Run | Jun Mat Min Exi Min Mat Fac Sto Rec Fac DSF Gar Peak Influence 543 | 10 374 257 . 94 367 338 543 249 196 386 425 Initial 289 | . 6 30 . . . 98 76 187 191 137 289 Average 213 | 1 195 146 . 76 201 162 365 179 193 249 331 Maximum Alert Level 2 | . 1 1 . . 1 1 2 1 . 1 2 Low Security (%) 47 | 100 43 52 . 100 42 88 16 36 100 55 . Level 1 46 | . 56 47 . . 57 11 40 63 . 44 91 Level 2 6 | . . . . . . . 43 . . . 8 Level 3 . | . . . . . . . . . . . . Level 4 . | . . . . . . . . . . . . Level 5 . | . . . . . . . . . . . . High Security . | . . . . . . . . . . . . Max Security . | . . . . . . . . . . . . Sterilizations 1 | . . . . . . . . . . 1 . Squads Dispatched 17 | . 4 1 . . 3 3 5 . . 1 . Investigation 9 | . 4 1 . . 1 1 2 . . . . Extermination 2 | . . . . . . 1 1 . . . . Reinforcement 2 | . . . . . . 1 . . . 1 . Assault 3 | . . . . . 1 . 2 . . . . Garrison 1 | . . . . . 1 . . . . . . Intercept . | . . . . . . . . . . . . Searches Triggered . | . . . . . . . . . . . . Construction Impeded 1 | . . . . . . 1 . . . . . Haulers Reinforced . | . . . . . . . . . . . . Active Scanning Responses . | . . . . . . . . . . . . Cargo Convoy Interrupts . | . . . . . . . . . . . . Stealth | -11 -10 -10 -10 -9 -8 -7 -7 -7 -5 -5 -5 --------- Run | Jun Mat Min Exi Min Mat Fac Sto Rec Fac DSF Gar Distress Signals 8 | . 1 . . . . . 1 4 . . 2 Communications Jammed . | . . . . . . . . . . . . Distress Signals . | . . . . . . . . . . . . Times Spotted 115 | . 16 6 . 1 6 16 29 11 . 7 23 Peak Tracking Total 7 | . 6 3 . 1 3 4 7 4 . 5 5 Tactical Retreats 10 | . . 1 . . . . 6 . . 1 2 Traps | -11 -10 -10 -10 -9 -8 -7 -7 -7 -5 -5 -5 ------- Run | Jun Mat Min Exi Min Mat Fac Sto Rec Fac DSF Gar Traps Triggered 9 | . 1 . . . . 2 5 . . 1 . Indirectly 2 | . . . . . . 2 . . . . . Trap Hack Attempts . | . . . . . . . . . . . . Triggered . | . . . . . . . . . . . . Disarmed . | . . . . . . . . . . . . Reprogrammed . | . . . . . . . . . . . . Reused . | . . . . . . . . . . . . Traps Extracted . | . . . . . . . . . . . . Installed . | . . . . . . . . . . . . Triggered 2 | . . . . . . . 2 . . . . Machines | -11 -10 -10 -10 -9 -8 -7 -7 -7 -5 -5 -5 ---------- Run | Jun Mat Min Exi Min Mat Fac Sto Rec Fac DSF Gar Machines Disabled 8 | . . 1 . . 2 2 . . . . 3 Max in Single Turn 2 | . . 1 . . 2 1 . . . . 1 Garrison Access 1 | . . . . . 1 . . . . . . Garrison Relay 2 | . . . . . . . . . . . 2 Machines Repaired . | . . . . . . . . . . . . Machines Sabotaged . | . . . . . . . . . . . . Overloaded Fab Kills . | . . . . . . . . . . . . Hacking | -11 -10 -10 -10 -9 -8 -7 -7 -7 -5 -5 -5 --------- Run | Jun Mat Min Exi Min Mat Fac Sto Rec Fac DSF Gar Machines Accessed 22 | . 7 1 2 . 3 . 5 3 1 . . Terminals 18 | . 6 1 . . 2 . 5 3 1 . . Fabricators . | . . . . . . . . . . . . Repair Stations 1 | . 1 . . . . . . . . . . Recycling Units . | . . . . . . . . . . . . Scanalyzers 1 | . . . . . 1 . . . . . . Garrison Access . | . . . . . . . . . . . . Total Hacks 65 | . 23 2 6 . 10 . 13 10 1 . . Successful 30 | . 9 . 6 . 7 . 4 3 1 . . Failed 34 | . 13 2 . . 3 . 9 7 . . . Catastrophic 8 | . 2 . . . 1 . 2 3 . . . Database Lockouts 1 | . 1 . . . . . . . . . . Manual 27 | . 14 1 1 . 3 . 5 3 . . . Terminals 53 | . 20 2 . . 7 . 13 10 1 . . Fabricators . | . . . . . . . . . . . . Repair Stations 3 | . 3 . . . . . . . . . . Recycling Units . | . . . . . . . . . . . . Scanalyzers 3 | . . . . . 3 . . . . . . Garrison Access . | . . . . . . . . . . . . Terminal Hacks 27 | . 8 . 6 . 5 . 4 3 1 . . Record 7 | . . . 6 . . . 1 . . . . Robot Analysis 3 | . 2 . . . . . . 1 . . . Open Door 2 | . . . . . . . 2 . . . . Open DSF 1 | . . . . . . . . . 1 . . Terminal Index 2 | . 1 . . . 1 . . . . . . Alert Level 2 | . . . . . 1 . . 1 . . . Unreport Threat 2 | . . . . . 1 . . 1 . . . Locate Traps 2 | . 1 . . . . . 1 . . . . Recall Investigation 1 | . . . . . 1 . . . . . . Hauler Manifests 1 | . 1 . . . . . . . . . . Zone Layout 4 | . 3 . . . 1 . . . . . . Fabricator Hacks . | . . . . . . . . . . . . Repair Station Hacks 1 | . 1 . . . . . . . . . . Scan Component 1 | . 1 . . . . . . . . . . Recycling Unit Hacks . | . . . . . . . . . . . . Scanalyzer 2 | . . . . . 2 . . . . . . Insert Component 1 | . . . . . 1 . . . . . . Analyze 1 | . . . . . 1 . . . . . . Garrison Access Hacks . | . . . . . . . . . . . . Unauthorized Hacks . | . . . . . . . . . . . . Terminals . | . . . . . . . . . . . . Fabricators . | . . . . . . . . . . . . Repair Stations . | . . . . . . . . . . . . Recycling Units . | . . . . . . . . . . . . Scanalyzers . | . . . . . . . . . . . . Garrison Access . | . . . . . . . . . . . . Data Cores Recovered . | . . . . . . . . . . . . Used . | . . . . . . . . . . . . Hacking Detections 18 | . 6 1 . . 3 . 5 3 . . . Full Trace Events 11 | . 4 1 . . 1 . 2 3 . . . Feedback Events . | . . . . . . . . . . . . Feedback Blocked . | . . . . . . . . . . . . Robot Schematics Acquired . | . . . . . . . . . . . . Robots Built . | . . . . . . . . . . . . Authchips . | . . . . . . . . . . . . Time . | . . . . . . . . . . . . Total Robot Build Rating . | . . . . . . . . . . . . Part Schematics Acquired 1 | . . . . . 1 . . . . . . Parts Built . | . . . . . . . . . . . . Authchips . | . . . . . . . . . . . . Time . | . . . . . . . . . . . . Total Part Build Rating . | . . . . . . . . . . . . Parts Repaired . | . . . . . . . . . . . . Time . | . . . . . . . . . . . . Parts Recycled . | . . . . . . . . . . . . Recycled Matter . | . . . . . . . . . . . . Retrieved Matter . | . . . . . . . . . . . . Retrieved Components . | . . . . . . . . . . . . Parts Scanalyzed 1 | . . . . . 1 . . . . . . Part Schematics Acquired 1 | . . . . . 1 . . . . . . Parts Damaged . | . . . . . . . . . . . . Bothacking | -11 -10 -10 -10 -9 -8 -7 -7 -7 -5 -5 -5 ------------ Run | Jun Mat Min Exi Min Mat Fac Sto Rec Fac DSF Gar Used RIF Installer 1 | . . . . . . . . . . . 1 Robots Hacked . | . . . . . . . . . . . . Non-combat . | . . . . . . . . . . . . Combat . | . . . . . . . . . . . . Robot Hacks Applied . | . . . . . . . . . . . . Relay Couplers Released 10 | . . . . . 1 . . . . . 9 Machine Destruction 10 | . . . . . 1 . . . . . 9 Fabnet Peak Effective % . | . . . . . . . . . . . . Robots Rewired 19 | . . . . . . . . 19 . . . Allies Hacked 1 | . . . . . . . . . . . 1 Hacks Repelled . | . . . . . . . . . . . . Allies | -11 -10 -10 -10 -9 -8 -7 -7 -7 -5 -5 -5 -------- Run | Jun Mat Min Exi Min Mat Fac Sto Rec Fac DSF Gar Total Allies 21 | . . . . . . . 2 19 . . . Largest Group 13 | . . . . . . . 2 13 13 13 9 Highest-Rated Group 345 | . . . . . . . 62 345 345 345 231 Highest-Rated Ally 40 | . . . . . . . 31 40 40 40 40 Total Orders . | . . . . . . . . . . . . Ally Attacks 116 | . . . . . . . 19 34 . 32 31 Total Damage 3509 | . . . . . . . 338 940 . 1131 1100 Kills 23 | . . . . . . . 4 9 . 5 5 Allies Corrupted . | . . . . . . . . . . . . Allies Melted . | . . . . . . . . . . . . Intel | -11 -10 -10 -10 -9 -8 -7 -7 -7 -5 -5 -5 ------- Run | Jun Mat Min Exi Min Mat Fac Sto Rec Fac DSF Gar Robot Analysis Total 3 | . 2 . . . . . . 1 . . . Derelict Logs Recovered 4 | . . 1 . 3 . . . . . . . Drone Launches . | . . . . . . . . . . . . Drone Recoveries . | . . . . . . . . . . . . Exploration | -11 -10 -10 -10 -9 -8 -7 -7 -7 -5 -5 -5 ------------- Run | Jun Mat Min Exi Min Mat Fac Sto Rec Fac DSF Gar Turns Passed 5452 | 91 880 470 499 438 283 626 616 575 79 190 705 Spaces Moved 2801 | 64 467 179 261 216 135 287 365 317 37 128 345 Core 9 | 3 3 . . . . . 2 . . . 1 Treads 549 | . . . . 100 135 226 . . . . 88 Legs 1212 | . 212 179 261 116 . 61 168 1 . . 214 Wheels 1031 | 61 252 . . . . . 195 316 37 128 42 Hover . | . . . . . . . . . . . . Flight . | . . . . . . . . . . . . Fastest Speed 50 | 50 80 190 190 160 160 160 95 100 115 115 90 Average Speed 143 | 81 142 190 190 176 160 167 127 100 115 115 121 Slowest Speed 550 | 200 450 190 190 190 160 260 550 190 115 115 360 Overloaded Moves . | . . . . . . . . . . . . Propulsion Burnouts . | . . . . . . . . . . . . Robots Hopped . | . . . . . . . . . . . . Cave-ins Triggered . | . . . . . . . . . . . . Exploration Rate (%) 41 | 4 58 48 60 63 15 7 53 60 2 84 45 Regions Visited 11 Branch Regions 5 Pre-discovered Areas . | . . . . . . . . . . . . Known Exits Taken 2 | . . . . . 1 . . . 1 . . Unknown Exits Taken 8 | 1 1 1 1 1 . 1 1 1 . . . Scrap Searched 1 | . . 1 . . . . . . . . . Spaces Dug 20 | . 5 . . 15 . . . . . . . Terrain Destroyed 185 | . 34 57 . 15 49 . 20 . . . 10 Melee . | . . . . . . . . . . . . Projectile 5 | . 5 . . . . . . . . . . AOE 180 | . 29 57 . 15 49 . 20 . . . 10 Terrain Rammed . | . . . . . . . . . . . . Walls Destroyed . | . . . . . . . . . . . . Machines Disabled . | . . . . . . . . . . . . Actions | -11 -10 -10 -10 -9 -8 -7 -7 -7 -5 -5 -5 --------- Run | Jun Mat Min Exi Min Mat Fac Sto Rec Fac DSF Gar Total 3745 | 84 582 291 266 242 170 370 459 528 73 163 517 Wait 158 | . 6 89 . 3 . 1 . 2 33 6 18 Move 2790 | 63 466 178 260 215 134 286 364 316 36 127 345 Hop . | . . . . . . . . . . . . Pick Up 94 | 6 15 . 1 1 6 11 21 5 1 9 18 Fast Attach 40 | 7 . 1 . . 2 2 11 6 . 1 10 Attach 63 | . 4 . . . 4 9 7 4 3 1 31 Detach 3 | . . . . . . . . . . . 3 Swap 44 | . 9 3 1 5 3 5 5 6 . . 7 Drop 35 | . 6 3 4 1 1 1 3 5 . 3 8 Fire 309 | 8 75 16 . 17 20 45 47 22 . 8 51 Melee 29 | . . . . . . . . 9 . . 20 Ram 3 | . 1 . . . . . 1 1 . . . Kick 1 | . . 1 . . . . . . . . . Crush 14 | . . . . . . 10 . . . . 4 Escape Stasis 10 | . . . . . . . . . . 8 2 Rewire 152 | . . . . . . . . 152 . . . Trap . | . . . . . . . . . . . . Miscellaneous . | . . . . . . . . . . . . Route ------- -11/Junkyard -10/Materials (discovered 3 exits: [*Mat x2] / *Min) -10/Mines (discovered 2 exits: [*Mat] / *Exi) -10/Exiles (discovered 2 exits: [*Min x2]) -9/Mines -8/Materials (discovered 2 exits: *Fac x2) -7/Factory (discovered 2 exits: *Sto / Low) -7/Storage -7/Recycling -5/Factory -5/DSF -5/Garrison History --------- Turn | Location | Event 16 | -11/Junkyard | Discovered new exit (range 16) 92 | -11/Junkyard | Entered Materials 172 | -10/Materials | Discovered new exit (range 12) 228 | -10/Materials | Destroyed 7 combat bots 275 | -10/Materials | Discovered new exit (range 16) 317 | -10/Materials | Build established: Mutant 467 | -10/Materials | Central database locked down 530 | -10/Materials | Lost 3 parts (2n1w) 681 | -10/Materials | Discovered new exit (range 14) 972 | -10/Materials | Entered Mines 978 | -10/Mines | Discovered new exit (range 9) 979 | -10/Mines | Received a Rocket Launcher from a helpful Derelict 1423 | -10/Mines | Learned Materials stockpile data 1433 | -10/Mines | Deemed a non-threat by the Exiles lab entrance 1434 | -10/Mines | Discovered new exit (range 5) 1442 | -10/Mines | Entered Exiles 1467 | -10/Exiles | Discovered new exit (range 15) 1490 | -10/Exiles | Met 8R-AWN 1522 | -10/Exiles | Met EX-HEX 1574 | -10/Exiles | Met EX-BIN 1644 | -10/Exiles | Aligned with FarCom system 1646 | -10/Exiles | Given EX-Vault access code 1724 | -10/Exiles | Opened EX-Vault 1744 | -10/Exiles | Found Prototype Storage 1781 | -10/Exiles | Warned to stay clear of 0b10 Research branches 1846 | -10/Exiles | Met EX-DEC 1916 | -10/Exiles | Discovered new exit (range 14) 1941 | -10/Exiles | Left Exiles lab with Lightpack 2.0 1941 | -10/Exiles | Entered Mines 1963 | -9/Mines | Core integrity fell below 50% 2028 | -9/Mines | Learned Materials security intel 2071 | -9/Mines | Learned 8 Materials zone layouts 2173 | -9/Mines | YI-UF0 nonchalantly dropped a Grenade Launcher on the ground 2236 | -9/Mines | Destroyed YI-UF0 2365 | -9/Mines | Discovered new exit (range 9) 2379 | -9/Mines | Entered Materials 2379 | -8/Materials | Evolved 4 slots: Propulsion x1, Utility x3 2379 | -8/Materials | Identified Lightpack 2.0 2380 | -8/Materials | Identified exit to Factory 2482 | -8/Materials | Garrison activated, responded to threat 2603 | -8/Materials | Lost 4 parts (1n1u2w) 2662 | -8/Materials | Entered Factory 2662 | -7/Factory | Evolved 2 slots: Utility x2 2663 | -7/Factory | Identified exit to Lower Caves 2764 | -7/Factory | Discovered new exit (range 15) 3002 | -7/Factory | Lost 3 parts (1u2w) 3017 | -7/Factory | Build established: Hauler-Mutant 3093 | -7/Factory | Lost 4 parts (2n2w) 3167 | -7/Factory | System corruption reached 10% 3181 | -7/Factory | Lost 3 parts (2n1w) 3288 | -7/Factory | Entered Storage 3303 | -7/Storage | Met a pair of Derelict thieves 3842 | -7/Storage | Core integrity fell below 50% 3866 | -7/Storage | Lost 5 parts (2n1u2w) 3901 | -7/Storage | Used back door to open Recycling access 3901 | -7/Storage | Discovered new exit (range 4) 3904 | -7/Storage | Entered Recycling 4338 | -7/Recycling | Discovered new exit (range 20) 4470 | -7/Recycling | System corruption reached 30% 4479 | -7/Recycling | Entered Factory 4479 | -5/Factory | Accompanied by 13 allies 4479 | -5/Factory | Evolved 4 slots: Power x1, Utility x2, Weapon x1 4526 | -5/Factory | Identified exit to DSF 4558 | -5/Factory | Entered DSF 4558 | -5/DSF | Accompanied by 13 allies 4595 | -5/DSF | Additional patrols routed to DSF 4641 | -5/DSF | Discovered new exit (range 14) 4692 | -5/DSF | Build established: Commander-Mutant 4708 | -5/DSF | Sterilization system engaged 4728 | -5/DSF | Ambient heat levels rising (+10) 4743 | -5/DSF | Ambient heat levels rising (+10) 4748 | -5/DSF | Entered Garrison 4748 | -5/Garrison | Accompanied by 9 allies 4766 | -5/Garrison | Installed Relay Interface Framework 4786 | -5/Garrison | Triggered checkpoint 4835 | -5/Garrison | Garrison Relay disabled 4924 | -5/Garrison | Triggered checkpoint 4926 | -5/Garrison | Triggered checkpoint 4989 | -5/Garrison | Triggered checkpoint 5081 | -5/Garrison | System corruption reached 10% 5091 | -5/Garrison | Lost 16 parts (2p5n5u4w) 5117 | -5/Garrison | Build established: Hauler-Mutant 5168 | -5/Garrison | Triggered checkpoint 5220 | -5/Garrison | Lost 3 parts (1p2u) 5293 | -5/Garrison | Lost 5 parts (1p1n1u2w) 5371 | -5/Garrison | Triggered checkpoint 5396 | -5/Garrison | Core integrity fell below 50% 5430 | -5/Garrison | Garrison Relay disabled 5432 | -5/Garrison | Lost 6 parts (1p3n1u1w) 5441 | -5/Garrison | Spotted B-75 Beast 5453 | -5/Garrison | Self-destructed Last Messages --------------- 05412_ The unstable cave ceiling collapses. 05413_ Acquired 9 matter. 05419_ System corrupted: Heat flow error (+117). 05430_ Garrison Relay disabled. 05430_ Relay Coupler [Heavy] tumbles out of relay unit. 05430_ Relay Coupler [Hunter] tumbles out of relay unit. 05430_ Relay Coupler [NC] tumbles out of relay unit. 05435_ Acquired Relay Coupler [Heavy]. 05441_ A-27 Freighter sends out distress signal. 05444_ Axe destroyed. 05444_ Carbon-fiber Leg blasted off. 05444_ Knocked back. 05445_ Acquired 6 matter. 05445_ The unstable cave ceiling collapses. 05448_ Carbon-fiber Leg destroyed. 05449_ ESRYR/&JJURJ6XOWEFN4%MX